fUSD/lending_fUSD_20260513
["ID","MTS","AMOUNT","RATE_DAILY","PERIOD"]
[422173970,1778646655000,-500.346566,0.00041096,120]
[422173959,1778646655000,-1107.202896,0.00041096,120]
[422173928,1778646655000,-1558.315031,0.00041096,20]
[422173952,1778646655000,-1107.202896,0.00041096,120]
[422173927,1778646655000,-1558.315031,0.00041096,20]
[422173986,1778646655000,-500.346566,0.00041096,120]
[422173930,1778646655000,-1558.315031,0.00041096,20]
[422173929,1778646655000,-1558.315031,0.00041096,20]
[422173939,1778646655000,-1558.315031,0.00041096,20]
[422173931,1778646655000,-1558.315031,0.00041096,20]
[422173935,1778646655000,-1558.315031,0.00041096,20]
[422173941,1778646655000,-1558.315031,0.00041096,20]
[422173932,1778646655000,-1558.315031,0.00041096,20]
[422173940,1778646655000,-1558.315031,0.00041096,20]
[422173933,1778646655000,-1558.315031,0.00041096,20]
[422173934,1778646655000,-1558.315031,0.00041096,20]
[422173936,1778646655000,-1558.315031,0.00041096,20]
[422173938,1778646655000,-1558.315031,0.00041096,20]
[422173937,1778646655000,-1558.315031,0.00041096,20]
[422173943,1778646655000,-1558.315031,0.00041096,20]
[422173953,1778646655000,-1107.202896,0.00041096,120]
[422173954,1778646655000,-1107.202896,0.00041096,120]
[422173955,1778646655000,-1107.202896,0.00041096,120]
[422173946,1778646655000,-1558.315023,0.00041096,20]
[422173944,1778646655000,-1558.315031,0.00041096,20]
[422173942,1778646655000,-1558.315031,0.00041096,20]
[422173948,1778646655000,-226.268601,0.00041096,120]
[422173945,1778646655000,-1558.315031,0.00041096,20]
[422173950,1778646655000,-1107.202896,0.00041096,120]
[422173951,1778646655000,-1107.202896,0.00041096,120]
[422173947,1778646655000,-176.979772,0.00041096,120]
[422173949,1778646655000,-1107.202896,0.00041096,120]
[422173988,1778646655000,-500.346566,0.00041096,120]
[422174043,1778646655000,-151.0,0.00041096,7]
[422173987,1778646655000,-500.346566,0.00041096,120]
[422174019,1778646655000,-226.31751,0.00041096,120]
[422174018,1778646655000,-226.31751,0.00041096,120]
[422174025,1778646655000,-207.51476,0.00041096,120]
[422174020,1778646655000,-226.31751,0.00041096,120]
[422174024,1778646655000,-168.037396,0.00041096,60]
[422174023,1778646655000,-226.317513,0.00041096,120]
[422174027,1778646655000,-295.601213,0.00041096,120]
[422174037,1778646655000,-151.0,0.00041096,7]
[422174026,1778646655000,-162.767927,0.00041096,120]
[422174028,1778646655000,-193.409528,0.00041096,120]
[422174029,1778646655000,-161.197381,0.00041096,120]
[422174030,1778646655000,-151.0,0.00041096,120]
[422174036,1778646655000,-151.0,0.00041096,7]
[422174035,1778646655000,-151.0,0.00041096,7]
[422174034,1778646655000,-231.853101,0.00041096,120]
[422174032,1778646655000,-165.541983,0.00041096,10]
[422174033,1778646655000,-151.0,0.00041096,120]
[422174031,1778646655000,-153.823368,0.00041096,120]
[422174038,1778646655000,-151.0,0.00041096,7]
[422174039,1778646655000,-151.0,0.00041096,7]
[422174041,1778646655000,-151.0,0.00041096,7]
[422174042,1778646655000,-151.0,0.00041096,7]
[422174040,1778646655000,-151.0,0.00041096,7]
[422174044,1778646655000,-151.0,0.00041096,7]
[422174046,1778646655000,-151.0,0.00041096,120]
[422173980,1778646655000,-500.346566,0.00041096,120]
[422174047,1778646655000,-151.0,0.00041096,120]
[422174017,1778646655000,-226.31751,0.00041096,120]
[422174022,1778646655000,-226.31751,0.00041096,120]
[422174045,1778646655000,-215.596504,0.00041096,7]
[422174016,1778646655000,-226.31751,0.00041096,120]
[422174015,1778646655000,-201.442228,0.00041096,120]
[422173995,1778646655000,-151.0,0.00041096,120]
[422173994,1778646655000,-151.0,0.00041096,120]
[422173993,1778646655000,-151.0,0.00041096,120]
[422173992,1778646655000,-151.0,0.00041096,120]
[422173990,1778646655000,-151.0,0.00041096,120]
[422173996,1778646655000,-151.0,0.00041096,120]
[422173991,1778646655000,-151.0,0.00041096,120]
[422173998,1778646655000,-234.627335,0.00041096,120]
[422173997,1778646655000,-151.0,0.00041096,120]
[422173999,1778646655000,-226.31751,0.00041096,120]
[422174001,1778646655000,-226.31751,0.00041096,120]
[422174011,1778646655000,-151.0,0.00041096,120]
[422173989,1778646655000,-151.0,0.00041096,120]
[422174000,1778646655000,-226.31751,0.00041096,120]
[422174004,1778646655000,-226.31751,0.00041096,120]
[422174014,1778646655000,-226.31751,0.00041096,120]
[422174009,1778646655000,-151.0,0.00041096,120]
[422174010,1778646655000,-226.31751,0.00041096,120]
[422174007,1778646655000,-151.0,0.00041096,120]
[422174008,1778646655000,-226.31751,0.00041096,120]
[422174021,1778646655000,-226.31751,0.00041096,120]
[422174013,1778646655000,-151.0,0.00041096,120]
[422174005,1778646655000,-226.31751,0.00041096,120]
[422174002,1778646655000,-226.31751,0.00041096,120]
[422174003,1778646655000,-226.31751,0.00041096,120]
[422174012,1778646655000,-226.31751,0.00041096,120]
[422174006,1778646655000,-226.31751,0.00041096,120]
[422174087,1778646656000,-699.0,0.00041096,120]
[422174085,1778646656000,-699.0,0.00041096,120]
[422174084,1778646656000,-699.0,0.00041096,120]
[422174082,1778646656000,-699.0,0.00041096,120]
[422174080,1778646656000,-699.0,0.00041096,120]
[422174077,1778646656000,-699.0,0.00041096,120]
[422174079,1778646656000,-699.0,0.00041096,120]
[422174083,1778646656000,-699.0,0.00041096,120]
[422174091,1778646656000,-699.0,0.00041096,120]
[422174081,1778646656000,-699.0,0.00041096,120]
[422174078,1778646656000,-699.0,0.00041096,120]
[422174092,1778646656000,-699.0,0.00041096,120]
[422174096,1778646656000,-10274.9751,0.000411,2]
[422174090,1778646656000,-699.0,0.00041096,120]
[422174088,1778646656000,-699.0,0.00041096,120]
[422174086,1778646656000,-699.0,0.00041096,120]
[422174089,1778646656000,-699.0,0.00041096,120]
[422174094,1778646656000,-699.0,0.00041096,120]
[422174097,1778646656000,-151.0,0.000411,120]
[422174095,1778646656000,-704.04223233,0.00041096,120]
[422174101,1778646656000,-176.41159487,0.000411,30]
[422174102,1778646656000,-1500.0,0.000411,35]
[422174099,1778646656000,-150.0,0.000411,39]
[422174074,1778646656000,-699.0,0.00041096,120]
[422174093,1778646656000,-699.0,0.00041096,120]
[422174076,1778646656000,-699.0,0.00041096,120]
[422174059,1778646656000,-151.0,0.00041096,120]
[422174069,1778646656000,-186.10244267,0.00041096,120]
[422174106,1778646656000,-1000.0,0.00041105,2]
[422174049,1778646656000,-151.0,0.00041096,120]
[422174048,1778646656000,-151.0,0.00041096,120]
[422174061,1778646656000,-259.148107,0.00041096,120]
[422174060,1778646656000,-151.0,0.00041096,120]
[422174056,1778646656000,-151.0,0.00041096,120]
[422174050,1778646656000,-151.0,0.00041096,120]
[422174054,1778646656000,-151.0,0.00041096,120]
[422174052,1778646656000,-151.0,0.00041096,120]
[422174062,1778646656000,-10000.0,0.00041096,120]
[422174053,1778646656000,-151.0,0.00041096,120]
[422174051,1778646656000,-151.0,0.00041096,120]
[422174057,1778646656000,-151.0,0.00041096,120]
[422174055,1778646656000,-151.0,0.00041096,120]
[422174058,1778646656000,-151.0,0.00041096,120]
[422174064,1778646656000,-10000.0,0.00041096,120]
[422174073,1778646656000,-699.0,0.00041096,120]
[422174067,1778646656000,-10000.0,0.00041096,120]
[422174065,1778646656000,-10000.0,0.00041096,120]
[422174071,1778646656000,-5800.0,0.00041096,14]
[422174070,1778646656000,-177.95686388,0.00041096,120]
[422174072,1778646656000,-699.0,0.00041096,120]
[422174068,1778646656000,-177.95686387,0.00041096,120]
[422174066,1778646656000,-10000.0,0.00041096,120]
[422174063,1778646656000,-10000.0,0.00041096,120]
[422174075,1778646656000,-699.0,0.00041096,120]
[422174109,1778646656000,-2000.0,0.00041105,120]
[422174129,1778646656000,-152.0,0.00041197,14]
[422174104,1778646656000,-1000.0,0.00041105,2]
[422174133,1778646656000,-699941.7249086,0.000412,120]
[422174136,1778646656000,-236.85,0.00041217,120]
[422174132,1778646656000,-164.75934584,0.00041197,14]
[422174134,1778646656000,-515.78860203,0.000412,30]
[422174138,1778646656000,-155.77,0.00041233,120]
[422174141,1778646656000,-155.76,0.00041233,120]
[422174140,1778646656000,-155.77,0.00041233,120]
[422174146,1778646656000,-304.5540721,0.0004124,2]
[422174143,1778646656000,-320.52583152,0.0004124,2]
[422174144,1778646656000,-304.2947018,0.0004124,2]
[422174139,1778646656000,-155.77,0.00041233,120]
[422174128,1778646656000,-238.78041857,0.00041197,14]
[422174147,1778646656000,-178.04,0.0004125,120]
[422174148,1778646656000,-157.72297697,0.00041258,2]
[422174145,1778646656000,-303.24752207,0.0004124,2]
[422174151,1778646656000,-152.0,0.00041258,120]
[422174150,1778646656000,-158.0,0.00041258,120]
[422174152,1778646656000,-1620.0,0.0004126,11]
[422174153,1778646656000,-200.0,0.00041261,120]
[422174157,1778646656000,-156.0,0.00041276,120]
[422174156,1778646656000,-1000.02174918,0.00041268,2]
[422174158,1778646656000,-154.0,0.00041276,120]
[422174154,1778646656000,-1312.44,0.00041266,2]
[422174100,1778646656000,-205.20210153,0.000411,60]
[422174142,1778646656000,-320.0,0.00041233,120]
[422174135,1778646656000,-310.13,0.00041202,120]
[422174149,1778646656000,-151.0,0.00041258,120]
[422174155,1778646656000,-495.24748638,0.00041268,120]
[422174131,1778646656000,-152.0,0.00041197,14]
[422174107,1778646656000,-1000.0,0.00041105,2]
[422174108,1778646656000,-806.98550916,0.00041105,2]
[422174098,1778646656000,-218.99621838,0.000411,120]
[422174105,1778646656000,-1000.0,0.00041105,2]
[422174103,1778646656000,-1000.0,0.00041105,2]
[422174112,1778646656000,-2000.0,0.00041105,120]
[422174114,1778646656000,-1000.0,0.00041109,120]
[422174117,1778646656000,-1380.25,0.00041149,120]
[422174115,1778646656000,-243.66,0.00041118,120]
[422174111,1778646656000,-2000.0,0.00041105,120]
[422174116,1778646656000,-295.59903988,0.00041141,60]
[422174110,1778646656000,-2000.0,0.00041105,120]
[422174119,1778646656000,-150.0,0.00041178,30]
[422174130,1778646656000,-152.0,0.00041197,14]
[422174113,1778646656000,-2000.0,0.00041105,120]
[422174137,1778646656000,-243.66,0.00041218,120]
[422174127,1778646656000,-153.0,0.00041197,14]
[422174122,1778646656000,-670.94307655,0.00041178,30]
[422174125,1778646656000,-250452.0,0.00041182,120]
[422174124,1778646656000,-3982.31042882,0.00041178,30]
[422174126,1778646656000,-442.0,0.00041184,60]
[422174121,1778646656000,-150.0,0.00041178,30]
[422174120,1778646656000,-297.69312479,0.00041178,30]
[422174118,1778646656000,-200.0,0.00041155,120]
[422174123,1778646656000,-150.0,0.00041178,30]
[422174178,1778646657000,-150.0,0.00041283,2]
[422174183,1778646657000,-1185.35068246,0.000413,2]
[422174177,1778646657000,-899.27097149,0.00041283,2]
[422174176,1778646657000,-150.0,0.00041283,2]
[422174181,1778646657000,-14427.46311805,0.00041283,2]
[422174180,1778646657000,-150.0,0.00041283,2]
[422174186,1778646657000,-180.10174158,0.00041302,120]
[422174185,1778646657000,-1791.50056687,0.000413,2]
[422174184,1778646657000,-1003.54875731,0.000413,2]
[422174187,1778646657000,-189.10682867,0.00041302,120]
[422174189,1778646657000,-189.10682866,0.00041316,120]
[422174175,1778646657000,-150.0,0.00041283,6]
[422174188,1778646657000,-310.13,0.00041302,120]
[422174182,1778646657000,-257.79336967,0.0004129,120]
[422174173,1778646657000,-500.0,0.00041282,60]
[422174160,1778646657000,-189.0,0.00041276,120]
[422174170,1778646657000,-361.57752001,0.00041276,3]
[422174168,1778646657000,-500.0,0.00041276,3]
[422174172,1778646657000,-563.17126166,0.00041282,60]
[422174171,1778646657000,-157.57,0.0004128,120]
[422174169,1778646657000,-500.0,0.00041276,3]
[422174167,1778646657000,-500.0,0.00041276,3]
[422174166,1778646657000,-500.0,0.00041276,3]
[422174165,1778646657000,-500.0,0.00041276,3]
[422174163,1778646657000,-500.0,0.00041276,3]
[422174164,1778646657000,-500.0,0.00041276,3]
[422174162,1778646657000,-500.0,0.00041276,3]
[422174159,1778646657000,-156.0,0.00041276,120]
[422174161,1778646657000,-345.90912459,0.00041276,30]
[422174190,1778646657000,-236.85,0.00041317,120]
[422174174,1778646657000,-882.48563277,0.00041283,120]
[422174194,1778646657000,-209.95735768,0.00041336,2]
[422174179,1778646657000,-1498.34566035,0.00041283,2]
[422174193,1778646657000,-189.10682866,0.0004133,120]
[422174191,1778646657000,-243.66,0.00041318,120]
[422174221,1778646657000,-621.5875,0.00014799,2]
[422174222,1778646657000,-973.6625,0.00022431,2]
[422174224,1778646657000,-495.15697751,0.00022431,2]
[422174219,1778646657000,-447.13676458,0.00039,30]
[422174220,1778646657000,-289.75288851,0.00039,30]
[422174212,1778646657000,-510.78323542,0.000149,2]
[422174216,1778646657000,-507.49,0.00026433,2]
[422174213,1778646657000,-507.49,0.00026348,7]
[422174218,1778646657000,-150.0,0.00028192,2]
[422174211,1778646657000,-1054.0,0.000149,2]
[422174210,1778646657000,-318.46,0.000149,2]
[422174217,1778646657000,-362.12,0.00026575,7]
[422174215,1778646657000,-507.49,0.00026405,7]
[422174206,1778646657000,-362.01,0.00026546,2]
[422174214,1778646657000,-507.49,0.00026377,2]
[422174204,1778646657000,-507.49,0.0002632,7]
[422174205,1778646657000,-362.01,0.00026518,7]
[422174196,1778646657000,-187.99550779,0.00041369,120]
[422174195,1778646657000,-189.10682866,0.00041343,120]
[422174197,1778646657000,-163.32253261,0.00041386,30]
[422174200,1778646657000,-1589620.10175863,0.000414,120]
[422174198,1778646657000,-10126.97494434,0.00041386,30]
[422174201,1778646657000,-81204.99975,0.000414,120]
[422174199,1778646657000,-6593.02711144,0.00041386,30]
[422174203,1778646657000,-507.49,0.00026292,2]
[422174209,1778646657000,-988.21398136,0.000414,120]
[422174208,1778646657000,-101454.11474922,0.000414,120]
[422174223,1778646657000,-506.0,0.00022431,2]
[422174207,1778646657000,-150.0,0.00026849,2]
[422174202,1778646657000,-507.49,0.00026263,2]
[422174192,1778646657000,-508.0,0.0004132,19]
[422174233,1778646658000,-507.49,0.00026462,2]
[422174229,1778646658000,-6051.0,0.00025431,2]
[422174237,1778646658000,-507.62,0.00026575,7]
[422174234,1778646658000,-507.49,0.0002649,7]
[422174231,1778646658000,-170.89,0.00025792,7]
[422174236,1778646658000,-507.49,0.00026547,2]
[422174225,1778646658000,-4076.18052249,0.00022431,2]
[422174230,1778646658000,-170.89,0.00025753,30]
[422174240,1778646658000,-150.0,0.00029601,2]
[422174227,1778646658000,-170.89,0.00025205,7]
[422174228,1778646658000,-170.89,0.00025401,2]
[422174226,1778646658000,-170.89,0.00024658,2]
[422174235,1778646658000,-507.49,0.00026518,7]
[422174232,1778646658000,-170.89,0.00026183,30]
[422174238,1778646658000,-170.92,0.00026575,2]
[422174241,1778646658000,-150.0,0.00031081,2]
[422174246,1778646658000,-822.07522,0.00041096,120]
[422174255,1778646658000,-23891.39870046,0.000414,120]
[422174256,1778646658000,-571.24820656,0.000414,120]
[422174257,1778646658000,-446.13756018,0.000414,120]
[422174253,1778646658000,-822.07522,0.00041096,120]
[422174254,1778646658000,-822.07522,0.00041096,120]
[422174252,1778646658000,-822.07522,0.00041096,120]
[422174249,1778646658000,-514.87658576,0.00041096,120]
[422174251,1778646658000,-822.07522,0.00041096,120]
[422174250,1778646658000,-822.07522,0.00041096,120]
[422174248,1778646658000,-307.19863424,0.00041096,120]
[422174247,1778646658000,-822.07522,0.00041096,120]
[422174242,1778646658000,-6051.0,0.00031431,2]
[422174244,1778646658000,-1699.909,0.00034431,2]
[422174245,1778646658000,-1903.76147896,0.00039,30]
[422174243,1778646658000,-150.0,0.00032636,2]
[422174239,1778646658000,-6051.0,0.00028431,2]
[422174258,1778646697000,-1883.24323542,0.0002195,2]
[422174261,1778646712000,335.38074995,0.00014899,2]
[422174260,1778646712000,500.0,0.00014899,2]
[422174262,1778646714000,563.30023144,0.00014899,2]
[422174265,1778646717000,407.32285386,0.00014899,2]
[422174264,1778646717000,500.0,0.00014899,2]
[422174263,1778646717000,500.0,0.00014899,2]
[422174267,1778646724000,500.0,0.00014899,2]
[422174269,1778646724000,500.0,0.00014899,2]
[422174268,1778646724000,500.0,0.00014899,2]
[422174270,1778646724000,500.0,0.00014899,2]
[422174272,1778646724000,552.54587186,0.00014899,2]
[422174271,1778646724000,500.0,0.00014899,2]
[422174273,1778646726000,182.41841851,0.00014899,2]
[422174274,1778646734000,198.93375558,0.00014899,2]
[422174275,1778646736000,5000.0,0.000148,2]
[422174276,1778646738000,500.0,0.00014899,2]
[422174277,1778646743000,1066.11195405,0.000148,2]
[422174279,1778646743000,10000.01,0.000148,2]
[422174282,1778646743000,5000.01,0.000148,2]
[422174281,1778646743000,10000.01,0.000148,2]
[422174280,1778646743000,10000.01,0.000148,2]
[422174278,1778646743000,10000.01,0.000148,2]
[422174284,1778646757000,-5000.01,0.000148,2]
[422174290,1778646799000,-10000.01,0.000148,2]
[422174288,1778646799000,-5091.72514581,0.00014799,2]
[422174289,1778646799000,-4908.28485419,0.000148,2]
[422174287,1778646799000,-10000.01,0.000148,2]
[422174286,1778646799000,-21600.0,0.000148,2]
[422174292,1778646800000,-9846.88862932,0.000148,2]
[422174291,1778646800000,-153.12137068,0.00014726,2]
[422174293,1778646815000,-5000.01,0.000148,2]
[422174295,1778646837000,-522.00305496,0.00014799,2]
[422174294,1778646837000,197.49,0.00024936,120]
[422174296,1778646838000,-500.0,0.00014799,2]
[422174297,1778646838000,-22.00305496,0.00014799,2]
[422174309,1778647532000,156.5,9.503e-05,2]
[422174324,1778647638000,-194.9000323,0.00014799,2]
[422174310,1778647638000,-220.88,0.000135,2]
[422174313,1778647638000,-169.64746066,0.000147,2]
[422174312,1778647638000,-34105.6166732,0.0001399,2]
[422174311,1778647638000,-1200.0,0.00013989,2]
[422174317,1778647638000,-415.02352454,0.000147,2]
[422174319,1778647638000,-160.39154955,0.0001479,2]
[422174316,1778647638000,-733.52468527,0.000147,2]
[422174315,1778647638000,-170.76059841,0.000147,2]
[422174318,1778647638000,-154.8096066,0.00014726,2]
[422174320,1778647638000,-151.0,0.00014797,2]
[422174321,1778647638000,-150.0,0.00014798,2]
[422174323,1778647638000,-321.06294928,0.00014799,2]
[422174314,1778647638000,-585.55070158,0.000147,2]
[422174326,1778647638000,-500.0,0.00014799,2]
[422174322,1778647638000,-477.99694504,0.00014799,2]
[422174336,1778647638000,-500.0,0.00014799,2]
[422174334,1778647638000,-500.0,0.00014799,2]
[422174337,1778647638000,-19007.23228553,0.000148,2]
[422174330,1778647638000,-537.71298597,0.00014799,2]
[422174333,1778647638000,-500.0,0.00014799,2]
[422174335,1778647638000,-500.0,0.00014799,2]
[422174329,1778647638000,-500.0,0.00014799,2]
[422174331,1778647638000,-500.0,0.00014799,2]
[422174327,1778647638000,-258.8637235,0.00014799,2]
[422174328,1778647638000,-500.0,0.00014799,2]
[422174325,1778647638000,-500.0,0.00014799,2]
[422174332,1778647638000,-500.0,0.00014799,2]
[422174339,1778647665000,163.42,0.00025808,120]
[422174345,1778647831000,-51.97244976,0.00014798,2]
[422174343,1778647831000,-160.39154955,0.0001479,2]
[422174347,1778647831000,-300.0,0.00014798,2]
[422174344,1778647831000,-150.0,0.00014798,2]
[422174346,1778647831000,-1148.02755024,0.00014798,2]
[422174353,1778647831000,-500.0,0.00014799,2]
[422174350,1778647831000,-500.0,0.00014799,2]
[422174351,1778647831000,-500.0,0.00014799,2]
[422174349,1778647831000,-500.0,0.00014799,2]
[422174352,1778647831000,-500.0,0.00014799,2]
[422174354,1778647831000,-500.0,0.00014799,2]
[422174348,1778647831000,-500.0,0.00014799,2]
[422174359,1778647832000,-64990.71563973,0.000148,2]
[422174358,1778647832000,-499.81717575,0.00014799,2]
[422174356,1778647832000,-500.0,0.00014799,2]
[422174357,1778647832000,-500.0,0.00014799,2]
[422174355,1778647832000,-500.0,0.00014799,2]
[422174361,1778647832000,-491.75,0.000148,2]
[422174362,1778647832000,-728.743811,0.000148,2]
[422174364,1778647832000,-4474.17622993,0.000148,2]
[422174363,1778647832000,-1700.23783598,0.000148,2]
[422174360,1778647832000,-7421.49108029,0.000148,2]
[422174365,1778647832000,-498.60816711,0.000148,2]
[422174385,1778647837000,-8272.28673679,0.000148,2]
[422174384,1778647837000,-7295.89671165,0.000148,2]
[422174429,1778647838000,-500.0,0.00014899,2]
[422174427,1778647838000,-500.0,0.00014899,2]
[422174422,1778647838000,-500.0,0.00014899,2]
[422174423,1778647838000,-500.0,0.00014899,2]
[422174425,1778647838000,-500.0,0.00014899,2]
[422174424,1778647838000,-500.0,0.00014899,2]
[422174431,1778647838000,-500.0,0.00014899,2]
[422174421,1778647838000,-505.4889847,0.00014899,2]
[422174420,1778647838000,-500.0,0.00014899,2]
[422174419,1778647838000,-500.0,0.00014899,2]
[422174413,1778647838000,-500.0,0.00014899,2]
[422174426,1778647838000,-500.0,0.00014899,2]
[422174433,1778647838000,-500.0,0.00014899,2]
[422174428,1778647838000,-500.0,0.00014899,2]
[422174435,1778647838000,-500.0,0.00014899,2]
[422174434,1778647838000,-500.0,0.00014899,2]
[422174436,1778647838000,-500.0,0.00014899,2]
[422174437,1778647838000,-500.0,0.00014899,2]
[422174438,1778647838000,-500.0,0.00014899,2]
[422174439,1778647838000,-500.0,0.00014899,2]
[422174440,1778647838000,-500.0,0.00014899,2]
[422174441,1778647838000,-500.0,0.00014899,2]
[422174444,1778647838000,-420.0,0.00016199,2]
[422174442,1778647838000,-500.0,0.00014899,2]
[422174443,1778647838000,-255.0,0.00015923,2]
[422174417,1778647838000,-500.0,0.00014899,2]
[422174432,1778647838000,-500.0,0.00014899,2]
[422174418,1778647838000,-500.0,0.00014899,2]
[422174397,1778647838000,-500.0,0.00014899,2]
[422174415,1778647838000,-500.0,0.00014899,2]
[422174387,1778647838000,-1272004.0590941,0.000148,2]
[422174386,1778647838000,-693.42697033,0.000148,2]
[422174392,1778647838000,-500.0,0.00014899,2]
[422174390,1778647838000,-171.0,0.000148,2]
[422174389,1778647838000,-4932.3562,0.000148,2]
[422174388,1778647838000,-304031.1613,0.000148,2]
[422174391,1778647838000,-171.0,0.000148,2]
[422174393,1778647838000,-500.0,0.00014899,2]
[422174395,1778647838000,-500.0,0.00014899,2]
[422174394,1778647838000,-500.0,0.00014899,2]
[422174445,1778647838000,-1680.0,0.00016278,2]
[422174398,1778647838000,-500.0,0.00014899,2]
[422174396,1778647838000,-500.0,0.00014899,2]
[422174416,1778647838000,-500.0,0.00014899,2]
[422174401,1778647838000,-500.0,0.00014899,2]
[422174405,1778647838000,-500.0,0.00014899,2]
[422174400,1778647838000,-518.50020175,0.00014899,2]
[422174399,1778647838000,-500.0,0.00014899,2]
[422174404,1778647838000,-500.0,0.00014899,2]
[422174402,1778647838000,-500.0,0.00014899,2]
[422174406,1778647838000,-500.0,0.00014899,2]
[422174407,1778647838000,-500.0,0.00014899,2]
[422174412,1778647838000,-500.0,0.00014899,2]
[422174409,1778647838000,-500.0,0.00014899,2]
[422174411,1778647838000,-500.0,0.00014899,2]
[422174410,1778647838000,-500.0,0.00014899,2]
[422174408,1778647838000,-500.0,0.00014899,2]
[422174414,1778647838000,-500.0,0.00014899,2]
[422174403,1778647838000,-500.0,0.00014899,2]
[422174448,1778647838000,-151.0,0.0001725,2]
[422174430,1778647838000,-500.0,0.00014899,2]
[422174447,1778647838000,-433.0,0.00017136,2]
[422174481,1778647838000,-167.59,0.0001893,2]
[422174484,1778647838000,-500.0,0.00019178,2]
[422174483,1778647838000,-500.0,0.00019178,2]
[422174480,1778647838000,-150.0,0.00018818,2]
[422174482,1778647838000,-6791.15,0.00018956,2]
[422174486,1778647838000,-500.0,0.00019178,2]
[422174488,1778647838000,-500.0,0.00019178,2]
[422174489,1778647838000,-500.0,0.00019178,2]
[422174487,1778647838000,-500.0,0.00019178,2]
[422174490,1778647838000,-2039.84,0.00019178,2]
[422174491,1778647838000,-183.27,0.00019286,2]
[422174494,1778647838000,-823.0,0.00019411,2]
[422174493,1778647838000,-163.42,0.00019356,2]
[422174479,1778647838000,-468.27,0.00018799,2]
[422174497,1778647838000,-3292.0,0.00019696,2]
[422174496,1778647838000,-3445.56,0.00019643,2]
[422174499,1778647838000,-156.48177233,0.0001979,2]
[422174498,1778647838000,-361.41,0.00019747,2]
[422174500,1778647838000,-1252.0,0.00019829,2]
[422174501,1778647838000,-167.59,0.00019926,2]
[422174503,1778647838000,-9522.0,0.0002,10]
[422174504,1778647838000,-228.0,0.0002,2]
[422174505,1778647838000,-1233.0,0.0002,2]
[422174502,1778647838000,-2412.0,0.0002,2]
[422174507,1778647838000,-171.56152654,0.000205,20]
[422174506,1778647838000,-191.0,0.0002,2]
[422174508,1778647838000,-4903.22,0.00020548,2]
[422174449,1778647838000,-151.0,0.0001725,2]
[422174492,1778647838000,-2000.0,0.0001932,2]
[422174485,1778647838000,-500.0,0.00019178,2]
[422174495,1778647838000,-200.0,0.00019632,2]
[422174475,1778647838000,-181.62,0.0001829,2]
[422174446,1778647838000,-367.77821944,0.00016438,2]
[422174478,1778647838000,-156.5,0.00018633,2]
[422174450,1778647838000,-151.0,0.0001725,2]
[422174451,1778647838000,-151.0,0.0001725,2]
[422174453,1778647838000,-151.0,0.0001725,2]
[422174452,1778647838000,-151.0,0.0001725,2]
[422174454,1778647838000,-151.0,0.0001725,2]
[422174457,1778647838000,-236.80407423,0.0001725,2]
[422174456,1778647838000,-151.0,0.0001725,2]
[422174458,1778647838000,-151.0,0.0001725,2]
[422174459,1778647838000,-151.0,0.0001725,2]